bitfinex-derivatives/quotes_ETHF0:USTF0_20250417
["timestamp","ask_amount","ask_price","bid_price","bid_amount"]
[1744906070121,1.26081743,1586.9,1586.7,1.26065]
[1744906070316,1.26081743,1586.9,1586.5,3.2078]
[1744906070317,1.26062,1586.8,1586.5,3.2078]
[1744906070621,0.00023743,1586.9,1586.7,4.4685]
[1744906071013,1.26084743,1586.9,1586.7,4.4685]
[1744906071319,1.26062,1586.8,1586.7,3.2078]
[1744906072221,3.15074,1588.1,1587.7,3.2078]
[1744906072411,3.14686,1589.2,1588.0,3.2078]
[1744906072611,1.6625,1589.1,1588.6,3.2078]
[1744906072814,1.259,1588.9,1588.5,1.25922]
[1744906073014,1.25911,1588.7,1588.6,3.2078]
[1744906073209,6.336,1588.7,1588.2,3.2078]
[1744906073512,1.25906,1588.8,1588.4,4.46712]
[1744906073713,1.25913,1588.7,1588.4,44.0078]
[1744906073920,1.25921,1588.6,1588.4,44.0078]
[1744906074221,1.25921,1588.6,1588.3,0.00944436]
[1744906074222,7.59519,1588.6,1588.5,3.2078]
[1744906074725,6.336,1588.6,1588.3,3.21724436]
[1744906074917,6.336,1588.6,1588.3,4.47661436]
[1744906075223,6.336,1588.6,1588.5,3.2078]
[1744906075724,6.334,1588.8,1588.5,3.98190912]
[1744906075922,6.334,1588.8,1588.7,3.2078]
[1744906076215,1.7156,1589.0,1588.7,3.2078]
[1744906076419,1.25892,1589.0,1588.8,1.6374]
[1744906076627,1.25852,1589.5,1589.1,1.25877]
[1744906076817,6.334,1589.5,1589.2,3.2078]
[1744906077122,1.7156,1589.4,1589.2,3.2078]
[1744906077322,7.59253,1589.5,1589.2,3.2078]
[1744906077323,6.334,1589.5,1589.2,1.6374]
[1744906077627,1.25872,1589.3,1589.2,3.2078]
[1744906077924,3.2078,1589.7,1589.1,0.00944436]
[1744906078124,1.25872,1589.2,1589.1,0.00944436]
[1744906078325,6.601,1589.3,1589.1,0.00944436]
[1744906078716,2.97432,1589.2,1589.1,0.00944436]
[1744906079121,1.25872,1589.2,1589.1,0.00944436]
[1744906079423,2.96582,1589.2,1589.1,0.00944436]
[1744906079624,6.601,1589.3,1589.1,3.21724436]
[1744906079826,6.601,1589.3,1589.2,1.7305]
[1744906080024,6.601,1589.3,1589.2,2.98922]
[1744906080221,3.2078,1589.7,1589.2,1.7305]
[1744906080222,4.46618,1589.7,1589.2,1.7305]
[1744906080416,7.8564,1589.6,1589.4,3.2078]
[1744906080629,8.3051,1589.6,1589.4,3.2078]
[1744906080823,6.598,1589.9,1589.4,3.2078]
[1744906081125,6.598,1589.9,1589.6,3.2078]
[1744906081429,1.25824,1589.8,1589.7,1.7305]
[1744906081727,0.02376,1590.1,1589.7,42.5305]
[1744906082020,0.02376,1590.1,1589.8,3.2078]
[1744906082223,3.16881,1590.1,1589.7,42.5305]
[1744906082420,4.9163,1590.0,1589.4,3.2078]
[1744906082618,4.9163,1590.0,1589.6,3.2078]
[1744906082818,0.02376,1590.1,1589.7,40.8]
[1744906083127,0.02376,1590.1,1590.0,4.46588]
[1744906083320,0.02376,1590.1,1590.0,3.2078]
[1744906083522,1.28176,1590.1,1590.0,3.2078]
[1744906083723,3.14544,1589.9,1589.5,3.2078]
[1744906083923,4.85372,1590.0,1589.5,4.9144]
[1744906084125,9.48974,1592.2,1590.8,3.2078]
[1744906084426,2.9654,1591.5,1591.4,3.2078]
[1744906084731,1.25686,1591.6,1591.4,3.2078]
[1744906085029,3.2078,1591.9,1591.4,4.8324]
[1744906085224,1.76,1591.8,1591.6,3.2078]
[1744906085416,13.62573,1592.2,1591.6,3.2078]
[1744906085622,1.25666,1591.8,1591.7,1.6246]
[1744906086223,3.2078,1592.7,1591.7,1.6246]
[1744906086417,1.76,1592.3,1592.0,3.2078]
[1744906086824,1.25642,1592.1,1592.0,3.2078]
[1744906087130,1.25642,1592.1,1592.0,0.01044436]
[1744906087825,13.52942,1592.1,1592.0,0.01044436]
[1744906088015,8.52942,1592.1,1592.0,0.01044436]
[1744906088221,1.25642,1592.1,1592.0,0.01044436]
[1744906088519,87.211,1592.4,1592.0,0.01044436]
[1744906088827,1.25642,1592.1,1592.0,3.21824436]
[1744906089621,1.25642,1592.1,1592.0,0.01044436]
[1744906089821,6.25642,1592.1,1592.0,0.01044436]
[1744906090024,1.25642,1592.1,1592.0,0.01044436]
[1744906090218,1.25642,1592.1,1592.0,3.21824436]
[1744906090523,1.2564,1592.2,1592.0,8.21824436]
[1744906090717,3.2078,1592.7,1592.1,1.7594]
[1744906090923,1.25595,1592.7,1592.6,3.2078]
[1744906091121,1.25611,1592.5,1592.4,3.2078]
[1744906091318,1.25642,1592.1,1592.0,3.21824436]
[1744906092227,1.25639,1592.2,1592.0,8.21824436]
[1744906092426,10.4778,1592.5,1592.1,1.6727]
[1744906092427,7.27,1592.5,1592.1,1.6727]
[1744906092728,1.25634,1592.2,1592.1,1.6727]
[1744906092924,1.25642,1592.1,1592.0,0.01044436]
[1744906093634,1.25642,1592.1,1592.0,4.36e-06]
[1744906093833,10.18942,1592.1,1592.0,4.36e-06]
[1744906094331,18.39722,1592.1,1592.0,4.36e-06]
[1744906094535,14.84688048,1592.1,1592.0,4.36e-06]
[1744906095030,1.25698,1591.4,1591.1,1.616]
[1744906095231,7.654,1591.6,1590.9,3.2078]
[1744906095428,7.654,1591.6,1590.9,1.616]
[1744906095429,1.25729,1591.0,1590.9,1.616]
[1744906096029,1.6755,1591.3,1590.9,6.616]
[1744906096234,1.26666436,1591.1,1590.9,1.616]
[1744906096432,0.00944436,1591.1,1591.0,3.2078]
[1744906096826,1.26665436,1591.1,1591.0,8.2078]
[1744906097121,1.26665436,1591.1,1591.0,9.9574]
[1744906097424,0.00944436,1591.1,1591.0,9.9574]
[1744906097631,1.26665436,1591.1,1591.0,50.7574]
[1744906098137,1.26665436,1591.1,1591.0,1.7496]
[1744906098333,1.25737,1590.9,1590.8,4.36e-06]
[1744906098541,1.25777,1590.4,1590.3,3.2078]
[1744906098835,1.25808,1590.0,1589.9,4.6831]
[1744906099022,3.14548,1589.9,1589.5,3.2078]
[1744906099227,1.25872,1589.2,1589.1,3.2078]
[1744906099633,3.14701,1589.1,1588.8,3.2078]
[1744906099937,1.2588,1589.1,1589.0,0.00944436]
[1744906100333,6.2588,1589.1,1589.0,4.36e-06]
[1744906100544,3.0051,1589.1,1589.0,4.36e-06]
[1744906100738,6.2129,1589.1,1589.0,4.36e-06]
[1744906100935,11.2129,1589.1,1589.0,4.36e-06]
[1744906101335,3.0051,1589.1,1589.0,4.36e-06]
[1744906101733,1.2588,1589.1,1589.0,4.36e-06]
[1744906101938,1.75574436,1589.3,1589.0,4.36e-06]
[1744906102138,1.2588,1589.1,1589.0,4.36e-06]
[1744906102835,1.75574436,1589.3,1589.0,4.36e-06]
[1744906103039,1.2588,1589.1,1589.0,4.36e-06]
[1744906104036,1.75574436,1589.3,1589.0,4.36e-06]
[1744906104339,0.00944436,1589.3,1589.0,4.36e-06]
[1744906104636,1.26809436,1589.3,1589.0,4.36e-06]
[1744906104843,2.95659436,1589.3,1589.0,4.36e-06]
[1744906105145,1.25876,1589.2,1589.0,3.20780436]
[1744906105337,1.6885,1589.2,1589.0,3.20780436]
[1744906105742,2.94724,1589.2,1589.0,3.20780436]
[1744906106246,1.6885,1589.2,1589.0,3.20780436]
[1744906106431,0.00944436,1589.3,1589.0,3.20780436]
[1744906106631,87.203,1590.3,1589.2,3.2078]
[1744906106836,1.6616,1590.1,1589.7,4.4661]
[1744906107041,4.46575,1590.2,1589.8,1.7203]
[1744906107244,4.8694,1590.5,1589.8,1.7203]
[1744906107545,1.25812,1590.0,1589.8,42.5203]
[1744906107844,0.00944436,1590.1,1589.8,1.7203]
[1744906108139,0.00944436,1590.1,1589.9,1.7203]
[1744906108344,0.00944436,1590.1,1589.9,45.7281]
[1744906109033,0.00944436,1590.1,1589.9,42.5203]
[1744906109346,0.00944436,1590.1,1589.9,45.7281]
[1744906109736,0.00944436,1590.1,1589.9,46.98624]
[1744906109936,0.00944436,1590.1,1589.9,50.7281]
[1744906110137,3.2078,1591.3,1590.0,7.935]
[1744906110341,4.87588,1591.7,1591.1,3.2078]
[1744906110536,4.87588,1591.7,1591.2,1.6343]
[1744906110743,1.734,1591.7,1591.3,3.2078]
[1744906110940,2.99078,1591.7,1591.4,1.6343]
[1744906111238,1.25654,1592.0,1591.6,3.2078]
[1744906111445,0.00944436,1591.7,1591.6,3.2078]
[1744906111832,3.28696168,1592.9,1591.7,3.14172]
[1744906112044,3.2078,1592.5,1592.0,3.2078]
[1744906112343,1.25608,1592.6,1592.2,3.2078]
[1744906112637,8.08161,1592.8,1592.2,3.2078]
[1744906112842,8.08161,1592.8,1592.1,40.8]
[1744906112843,1.2562,1592.4,1592.1,40.8]
[1744906113042,4.46395,1592.5,1592.3,0.00944436]
[1744906113342,1.25615,1592.5,1592.3,0.00944436]
[1744906113539,1.25619,1592.4,1592.3,0.00944436]
[1744906113738,2.86999,1592.4,1592.3,0.00944436]
[1744906113941,7.86999,1592.4,1592.3,0.00944436]
[1744906114143,6.07779,1592.4,1592.3,0.00944436]
[1744906114345,2.86999,1592.4,1592.3,0.00944436]
[1744906114740,6.6138,1592.4,1591.8,3.2078]
[1744906115038,3.2078,1592.2,1591.6,3.2078]
[1744906115245,1.7157,1592.1,1591.6,3.2078]
[1744906115445,3.14047,1592.4,1591.8,4.46444]
[1744906115637,4.46411,1592.3,1592.0,3.2078]
[1744906116034,0.0093346,1592.7,1592.2,3.2078]
[1744906116241,0.0093346,1592.7,1592.2,6.34857]
[1744906116447,0.0093346,1592.7,1592.4,3.2078]
[1744906116649,1.25621,1592.4,1592.2,3.2078]
[1744906116847,4.46395,1592.5,1592.2,4.46414]
[1744906117040,4.46396,1592.5,1592.2,3.2078]
[1744906117237,11.1378,1592.5,1592.2,3.2078]
[1744906117440,1.25692,1591.5,1591.1,3.2078]
[1744906117647,3.2078,1591.5,1591.1,3.2078]
[1744906117848,4.46473,1591.5,1591.1,3.2078]
[1744906118051,4.46473,1591.5,1591.1,4.46495]
[1744906118342,3.2078,1591.5,1591.1,3.2078]
[1744906118549,1.25698,1591.4,1591.1,3.21724436]
[1744906118747,4.47418436,1591.5,1591.1,4.47442436]
[1744906118943,0.00944436,1591.5,1591.1,3.21724436]
[1744906119142,0.00944436,1591.5,1591.2,1.25712]
[1744906119342,1.25713,1591.2,1591.1,3.21724436]
[1744906119539,3.15171436,1591.5,1591.1,3.21724436]
[1744906119540,0.00944436,1591.5,1591.1,0.00944436]
[1744906119744,1.25699,1591.4,1591.1,1.26661436]
[1744906119941,1.257,1591.4,1591.1,1.26663436]
[1744906120148,0.00944436,1591.5,1591.2,1.25712]
[1744906120343,0.00944436,1591.5,1591.1,0.00944436]
[1744906120548,1.25709,1591.3,1591.1,0.00944436]
[1744906120744,1.25713,1591.2,1591.1,0.00944436]
[1744906120945,3.2078,1591.4,1591.1,1.26662436]
[1744906121248,4.47416436,1591.5,1591.2,1.25708]
[1744906121447,1.25698,1591.4,1591.1,1.26659436]
[1744906121652,0.00944436,1591.5,1591.1,1.26659436]
[1744906121850,1.26640436,1591.5,1591.1,0.00944436]
[1744906122051,1.25699,1591.4,1591.1,0.00944436]
[1744906122252,1.25701,1591.4,1591.1,0.00944436]
[1744906122563,3.2078,1591.4,1591.1,0.00944436]
[1744906122760,1.25708,1591.3,1591.1,1.26659436]
[1744906122946,1.26640436,1591.5,1591.2,1.25712]
[1744906123146,1.25701,1591.4,1591.2,1.25707]
[1744906123346,0.00944436,1591.5,1591.3,1.257]
[1744906123755,1.26640436,1591.5,1591.2,1.25707]
[1744906123959,0.00944436,1591.5,1591.1,0.00944436]
[1744906124157,1.25703,1591.4,1591.1,0.00944436]
[1744906124352,0.00944436,1591.5,1591.1,0.00944436]
[1744906124353,0.00944436,1591.5,1591.4,1.25698]
[1744906124559,0.00944436,1591.5,1591.4,4.46478]
[1744906124758,0.00944436,1591.5,1591.4,9.46478]
[1744906125260,1.7678,1592.1,1591.8,1.25666]
[1744906125461,1.2566,1591.9,1591.5,6.35002]
[1744906125755,3.14128,1592.0,1591.5,3.2078]
[1744906125958,1.25682,1591.6,1591.5,4.46464]
[1744906126158,1.25681,1591.7,1591.6,1.2568]
[1744906126360,3.14166,1591.8,1591.5,4.46463]
[1744906126562,1.2568,1591.7,1591.6,1.2568]
[1744906126954,1.25674,1591.7,1591.6,1.2568]
[1744906127161,1.25682,1591.6,1591.5,4.46463]
[1744906127353,1.25682,1591.6,1591.5,3.2078]
[1744906127954,1.25682,1591.6,1591.3,3.2078]
[1744906127955,1.25698,1591.4,1591.3,3.2078]
[1744906128355,1.25713,1591.2,1591.1,0.00944436]
[1744906128550,1.25713,1591.2,1591.1,1.67354436]
[1744906128757,1.25713,1591.2,1591.1,0.00944436]
[1744906129864,1.25713,1591.2,1591.1,1.67354436]
[1744906130069,1.25713,1591.2,1591.1,0.00944436]
[1744906130366,1.25729,1591.0,1590.9,1.6641]
[1744906130967,1.6232,1591.1,1590.9,1.6641]
[1744906131264,2.88045,1591.1,1590.9,1.6641]
[1744906131560,94.982,1591.6,1590.9,8.01531]
[1744906131867,9.4902,1591.6,1591.0,3.14314]
[1744906132056,9.4902,1591.6,1591.1,4.8631]
[1744906132262,9.4902,1591.6,1591.2,1.6553]
[1744906132463,0.00944436,1591.8,1591.6,1.25677]
[1744906132657,0.00944436,1591.8,1591.7,1.25674]
[1744906133164,0.00944436,1591.8,1591.7,4.46454]
[1744906133361,0.00944436,1591.8,1591.7,1.25674]
[1744906133562,0.00944436,1591.8,1591.6,1.6283]
[1744906133766,0.00944436,1591.8,1591.7,1.25674]
[1744906133959,4.90184436,1591.8,1591.7,1.25674]
[1744906134160,6.15852436,1591.8,1591.6,2.88507]
[1744906134366,4.90184436,1591.8,1591.3,3.2078]
[1744906134562,1.25674,1591.7,1591.5,1.25687]
[1744906134764,1.25674,1591.7,1591.6,1.25682]
[1744906135065,4.90184436,1591.8,1591.6,1.2568]
[1744906135370,6.15852436,1591.8,1591.6,1.2568]
[1744906135571,4.90184436,1591.8,1591.5,4.46464]
[1744906135869,6.15854436,1591.8,1591.5,3.2078]
[1744906136054,1.69404436,1591.8,1591.7,1.25674]
[1744906136254,1.69404436,1591.8,1591.6,2.88507]
[1744906136453,2.95070436,1591.8,1591.6,2.88507]
[1744906136654,1.25679,1591.7,1591.5,4.46469]
[1744906136859,1.7048,1591.6,1591.5,4.4647]
[1744906137259,1.7048,1591.6,1591.5,3.2078]
[1744906137663,1.25675,1591.7,1591.5,4.46466]
[1744906137864,1.25676,1591.7,1591.5,4.46466]
[1744906138267,1.25682,1591.6,1591.5,3.2078]
[1744906138470,2.9616,1591.7,1591.5,3.2078]
[1744906138665,1.7048,1591.7,1591.6,2.031802]
[1744906138866,2.96154,1591.7,1591.6,0.774982]
[1744906139063,1.7048,1591.7,1591.6,3.649902]
[1744906139263,0.00944436,1591.8,1591.7,1.25674]
[1744906139470,0.00944436,1591.8,1591.7,3.01034]
[1744906139772,6.26610436,1591.8,1591.7,0.774982]
[1744906140064,0.00944436,1591.8,1591.7,5.69265786]
[1744906140465,0.00944436,1591.8,1591.7,2.48485786]
[1744906141067,0.00944436,1591.8,1591.7,2.031722]
[1744906141264,7.867,1592.2,1592.1,1.25642]
[1744906141463,2.99768,1592.3,1592.2,1.25634]
[1744906141664,1.2565,1592.0,1591.9,1.7536]
[1744906141865,1.25666,1591.8,1591.7,0.774982]
[1744906142459,4.95864436,1591.9,1591.7,2.031722]
[1744906142665,4.95864436,1591.9,1591.6,2.89106436]
[1744906142866,1.25672,1591.8,1591.6,1.26623436]
[1744906143069,1.25674,1591.7,1591.6,0.00944436]
[1744906143468,6.25674,1591.7,1591.6,0.00944436]
[1744906143765,1.25704,1591.4,1591.2,1.25713]
[1744906144165,1.7478,1591.3,1591.0,1.6248]
[1744906144367,1.25715,1591.2,1591.0,2.88204]
[1744906144561,1.7478,1591.1,1590.7,48.77641]
[1744906144763,10.7938,1591.7,1591.0,1.25729]
[1744906144967,1.25698,1591.4,1591.2,1.25708]
[1744906145169,1.75724436,1591.5,1591.1,4.8326]
[1744906145369,1.25698,1591.4,1591.2,3.33556693]
[1744906145571,1.75724436,1591.5,1591.2,2.88186]
[1744906145769,1.75724436,1591.5,1591.1,4.46496]
[1744906145971,1.75724436,1591.5,1591.4,1.25698]
[1744906146472,0.00944436,1591.5,1591.4,2.48228509]
[1744906146674,0.00944436,1591.5,1591.4,2.87420509]
[1744906146875,0.00944436,1591.5,1591.4,4.13118509]
[1744906147169,0.00944436,1591.5,1591.4,2.87420509]
[1744906147469,1.26634436,1591.5,1591.4,0.77164918]
[1744906147775,6.26634436,1591.5,1591.4,0.77164918]
[1744906147969,1.25705,1591.4,1591.1,4.46499]
[1744906148272,2.8639,1591.3,1591.1,3.2078]
[1744906148465,1.6068,1591.3,1591.2,0.7722708]
[1744906148763,1.6068,1591.3,1591.2,1.22636713]
[1744906149268,2.86386,1591.3,1591.2,0.7722708]
[1744906149469,7.86386,1591.3,1591.2,0.7722708]
[1744906149666,7.86386,1591.3,1590.7,0.00944436]
[1744906149667,1.25745,1590.8,1590.7,0.00944436]
[1744906149869,8.84445,1590.8,1590.7,0.00944436]
[1744906150272,1.7363,1590.9,1590.7,0.00944436]
[1744906150467,1.25733,1591.0,1590.7,0.00944436]
[1744906150777,1.25716,1591.2,1591.0,1.25725]
[1744906150964,1.25716,1591.2,1590.7,6.36096436]
[1744906150965,1.7363,1591.2,1591.1,1.25721]
[1744906151170,1.7363,1591.2,1590.8,1.6706]
[1744906151371,2.99349,1591.2,1591.0,1.25728]
[1744906151571,3.2078,1591.3,1591.2,1.25713]
[1744906151872,1.25721,1591.2,1591.0,1.25727]
[1744906152175,1.7115,1591.2,1591.0,1.6137]
[1744906152378,1.25729,1591.0,1590.9,3.2078]
[1744906152776,4.85448,1591.2,1590.9,3.2078]
[1744906153073,1.25729,1591.0,1590.9,3.2078]
[1744906153269,1.7115,1591.2,1590.9,3.2078]
[1744906153570,1.25721,1591.1,1590.7,1.62314436]
[1744906153773,10.7958,1591.3,1590.8,6.35142]
[1744906153978,1.25713,1591.2,1591.1,1.2572]
[1744906154173,3.2078,1591.3,1591.1,2.8709]
[1744906154374,1.7115,1591.4,1591.3,1.25706]
[1744906154571,2.96853,1591.4,1591.2,6.07858]
[1744906154772,1.25706,1591.3,1591.2,1.6137]
[1744906154966,2.89156,1591.3,1591.2,1.6137]
[1744906155167,1.26636436,1591.5,1591.2,1.6137]
[1744906155364,0.00944436,1591.5,1591.2,3.2078]
[1744906155563,1.25708,1591.3,1591.0,3.2078]
[1744906155768,2.89152,1591.4,1591.2,1.25707]
[1744906155971,1.25713,1591.2,1591.1,1.6882]
[1744906156173,1.25707,1591.3,1591.1,2.94535]
[1744906156479,1.2572,1591.2,1591.0,4.46503]
[1744906156670,1.6345,1591.4,1591.0,3.2078]
[1744906157079,1.25717,1591.2,1591.0,4.46501]
[1744906157278,7.91955,1591.4,1591.0,4.46501]
[1744906157474,1.25721,1591.1,1591.0,3.2078]
[1744906157676,1.25729,1591.0,1590.9,1.6882]
[1744906158675,1.25744,1590.9,1590.7,8.18863964]
[1744906158979,1.25738,1590.9,1590.7,9.92973964]
[1744906159377,3.14304,1591.1,1590.8,1.25745]
[1744906159579,1.25729,1591.0,1590.9,1.7411]
[1744906160084,1.25729,1591.0,1590.9,2.99847]
[1744906160378,1.7533,1591.1,1590.9,1.7411]
[1744906160770,3.01056,1591.1,1590.9,2.99845]
[1744906160977,1.25729,1591.0,1590.9,1.7411]
[1744906161378,1.25742,1590.9,1590.7,9.44612964]
[1744906161578,1.6074,1590.9,1590.7,9.87503964]
[1744906161879,1.25709,1591.3,1591.0,3.14312]
[1744906162181,1.25711,1591.3,1591.1,2.94357]
[1744906162384,1.25711,1591.3,1591.2,2.94353]
[1744906162585,1.25711,1591.3,1591.2,1.6864]
[1744906162779,1.25719,1591.2,1590.9,3.14343]
[1744906162976,1.25719,1591.2,1591.1,1.6864]
[1744906163278,3.2078,1591.3,1590.8,3.2078]
[1744906163483,1.25734,1591.0,1590.9,1.6864]
[1744906163781,1.25729,1591.0,1590.9,1.6864]
[1744906164276,1.25737,1590.9,1590.8,3.2078]
[1744906164982,11.10156,1591.1,1590.7,1.70964436]
[1744906164983,1.25745,1590.8,1590.7,1.70964436]
[1744906165178,4.46525,1590.8,1590.7,0.00944436]
[1744906165380,1.25745,1590.8,1590.7,0.00944436]
[1744906165577,1.7007,1590.9,1590.8,1.25745]
[1744906165878,2.95807,1590.9,1590.8,2.95765]
[1744906166078,1.25833,1591.0,1590.8,1.7002]
[1744906166271,1.25833,1591.0,1590.9,2.95757]
[1744906166472,1.25833,1591.0,1590.9,1.7002]
[1744906166782,0.001,1591.0,1590.9,2.95757]
[1744906166983,1.25829,1591.0,1590.9,1.7002]
[1744906167178,1.25737,1590.9,1590.8,1.25743]
[1744906167381,1.25745,1590.8,1590.7,4.81754436]
[1744906167677,1.25745,1590.8,1590.7,3.21724436]
[1744906167870,6.25745,1590.8,1590.7,0.00944436]
[1744906168074,2.97265,1590.8,1590.7,0.00944436]
[1744906168680,7.97265,1590.8,1590.7,0.00944436]
[1744906169383,1.25777,1590.4,1590.3,3.2078]
[1744906169582,1.25777,1590.4,1590.3,4.8081]
[1744906169876,1.25792,1590.2,1590.1,8.17919528]
[1744906170477,0.00944436,1590.3,1590.2,1.25792]
[1744906170785,0.00944436,1590.3,1590.2,3.01542]
[1744906171079,0.00944436,1590.3,1590.2,6.22322]
[1744906172482,0.00944436,1590.3,1590.2,6.98755549]
[1744906172774,1.26729436,1590.3,1590.2,0.76433549]
[1744906172980,2.89519436,1590.3,1590.2,0.76433549]
[1744906173277,1.258,1590.1,1590.0,0.00944436]
[1744906173780,1.258,1590.1,1590.0,1.77714436]
[1744906173980,1.258,1590.1,1590.0,0.00944436]
[1744906174182,6.258,1590.1,1590.0,0.00944436]
[1744906174381,4.4658,1590.1,1590.0,0.00944436]
[1744906174587,16.7698,1590.1,1590.0,0.00944436]
[1744906174786,1.25832,1589.7,1589.6,1.7677]
[1744906175087,1.25832,1589.7,1589.6,4.9755]
[1744906175988,1.2584,1589.6,1589.5,3.21724436]
[1744906176178,2.9706,1589.6,1589.5,0.00944436]
[1744906176378,7.9706,1589.6,1589.5,0.00944436]
[1744906176578,11.1784,1589.6,1589.5,4.36e-06]
[1744906178073,6.1784,1589.6,1589.5,4.36e-06]
[1744906178273,7.9706,1589.6,1589.5,4.36e-06]
[1744906178583,11.1784,1589.6,1589.5,4.36e-06]
[1744906178778,17.1484,1589.6,1589.5,4.36e-06]
[1744906178985,17.1484,1589.6,1588.6,11.38699528]
[1744906178986,1.25901,1588.9,1588.6,8.17919528]
[1744906179180,8.56691,1589.0,1588.7,2.92251]
[1744906179375,1.25903,1588.8,1588.7,1.6634]
[1744906179578,1.6622,1588.9,1588.6,8.17919528]
[1744906179783,2.92131,1588.7,1588.6,8.17919528]
[1744906179981,2.92131,1588.7,1588.6,8.18560126]
[1744906180377,1.6622,1588.7,1588.6,8.18560126]
[1744906180586,4.47624436,1588.9,1588.6,9.84900126]
[1744906180786,8.98064436,1588.9,1588.7,2.9225]
[1744906180978,8.98064436,1588.9,1588.7,1.6634]
[1744906181177,10.23962436,1588.9,1588.7,1.6634]
[1744906181378,8.98064436,1588.9,1588.7,1.6634]
[1744906181589,10.23960436,1588.9,1588.7,2.92249]
[1744906181988,8.98064436,1588.9,1588.7,2.92249]
[1744906182186,0.00944436,1588.9,1588.8,4.46683]
[1744906182391,1.25846,1589.6,1589.3,1.25857]
[1744906182690,3.2078,1589.7,1589.2,3.2078]
[1744906182991,1.7158,1589.6,1589.5,1.25848]
[1744906183186,1.7158,1589.6,1589.3,1.7609]
[1744906183381,1.25853,1589.5,1589.3,3.0195]
[1744906183587,0.00944436,1589.6,1589.5,1.25848]
[1744906184093,0.00944436,1589.6,1589.5,1.7609]
[1744906184595,4.9236,1589.9,1589.5,6.7609]
[1744906184792,4.9236,1589.9,1589.5,1.7609]
[1744906184992,7.309,1590.2,1589.6,3.2078]
[1744906185186,7.309,1590.2,1589.7,1.6154]
[1744906185384,1.7427,1590.1,1589.7,1.6154]
[1744906185589,1.75214436,1590.1,1589.7,1.6154]
[1744906185789,3.2078,1590.0,1589.7,1.6154]
[1744906186297,1.7427,1589.9,1589.7,1.6154]
[1744906186999,4.9505,1589.9,1589.7,1.6154]
[1744906187496,4.9505,1589.9,1589.6,3.2078]
[1744906188296,4.9505,1589.9,1589.7,1.6601]
[1744906190309,4.9505,1589.9,1589.6,3.2078]
[1744906191408,1.7427,1589.9,1589.6,3.2078]
[1744906191609,1.7427,1589.9,1589.7,1.7286]
[1744906191908,1.7427,1589.9,1589.6,3.2078]
[1744906192107,4.9505,1589.9,1589.6,3.2078]
[1744906192711,4.9505,1589.9,1589.7,1.7286]
[1744906193410,10.24624436,1590.1,1589.7,1.7286]
[1744906193610,3.21724436,1590.1,1589.7,1.7286]
[1744906194108,1.6471,1590.0,1589.7,1.7286]
[1744906194613,3.21724436,1590.1,1589.7,1.7286]
[1744906195510,3.2078,1589.9,1589.7,1.7286]
[1744906195910,1.6782,1590.0,1589.7,1.7286]
[1744906196105,0.00944436,1590.1,1589.7,1.7286]
[1744906196411,3.2078,1590.8,1590.0,3.2078]
[1744906196609,1.6782,1590.8,1590.4,3.2078]
[1744906196809,7.029,1591.2,1590.5,1.6869]
[1744906197010,8.7072,1591.2,1590.6,3.2078]
[1744906197207,3.2078,1591.1,1590.7,1.6869]
[1744906197513,3.2078,1590.9,1590.7,0.00944436]
[1744906197716,1.6872,1590.8,1590.7,0.00944436]
[1744906197919,8.7162,1590.8,1590.7,0.00944436]
[1744906198113,13.7162,1590.8,1590.7,0.00944436]
[1744906198614,15.2723,1590.8,1590.7,0.00944436]
[1744906199319,15.2723,1590.8,1590.1,3.2078]
[1744906199620,10.2723,1590.8,1590.1,3.2078]
[1744906199915,10.2723,1590.8,1590.2,1.7346]
[1744906200411,10.2723,1590.8,1590.3,3.2078]
[1744906200618,1.6872,1590.8,1590.4,1.5998]
[1744906201117,1.6802,1591.0,1590.5,3.2078]
[1744906201516,1.6802,1591.0,1590.6,1.5998]
[1744906202120,1.6812,1591.0,1590.6,1.5998]
[1744906203422,3.2078,1590.8,1590.6,1.5998]
[1744906203622,1.722,1590.7,1590.6,1.5998]
[1744906204720,9.9298,1590.7,1590.3,3.21724436]
[1744906204916,3.2078,1590.5,1590.3,0.00944436]
[1744906205109,1.722,1590.4,1590.3,0.00944436]
[1744906208022,13.749,1590.4,1589.4,3.2078]
[1744906208226,3.2078,1590.1,1589.5,1.6261]
[1744906208414,1.6164,1590.0,1589.6,3.2078]
[1744906208609,1.6164,1590.0,1589.7,1.6261]
[1744906208809,1.6164,1590.0,1589.4,3.2078]
[1744906209014,8.6434,1590.0,1589.5,1.6261]
[1744906209225,0.00944436,1589.9,1589.5,1.63554436]
[1744906209622,1.66734436,1589.9,1589.5,1.63554436]
[1744906211023,1.66734436,1589.9,1589.6,3.2078]
[1744906211219,1.66734436,1589.9,1589.7,1.7142]
[1744906212621,4.87514436,1589.9,1589.5,0.00944436]
[1744906212817,3.2078,1589.8,1589.5,0.00944436]
[1744906213124,3.2078,1589.6,1589.5,0.00944436]
[1744906213324,6.764,1589.6,1589.5,0.00944436]
[1744906213517,11.764,1589.6,1589.5,0.00944436]
[1744906213827,13.4469,1589.6,1589.5,0.00944436]
[1744906216029,13.4469,1589.6,1588.9,4.8208]
[1744906216227,3.2078,1589.5,1588.9,4.8208]
[1744906216522,3.2078,1589.3,1588.9,4.8208]
[1744906216729,1.771,1589.2,1588.9,3.2078]
[1744906217225,1.771,1589.2,1588.9,3.21420598]
[1744906218021,8.537,1589.2,1588.9,3.21420598]
[1744906218923,3.2078,1589.1,1588.9,0.00640598]
[1744906219124,1.6161,1589.0,1588.9,0.00640598]
[1744906219927,6.766,1589.2,1588.9,0.00640598]
[1744906220234,9.9295,1589.5,1589.0,3.2078]
[1744906220522,1.6161,1589.4,1589.1,1.7421]
[1744906221119,4.8239,1589.4,1588.9,0.00640598]
[1744906222230,3.2078,1589.2,1588.9,0.00640598]
[1744906222425,3.2078,1589.0,1588.9,0.00640598]
[1744906223029,9.8387,1589.0,1588.9,0.00640598]